bitfinex-derivatives/quotes_BNBF0:USTF0_20250529
["timestamp","ask_amount","ask_price","bid_price","bid_amount"]
[1748516557965,1.02154427,685.4,684.46,0.57212404]
[1748516558461,1.02163206,685.39,684.46,0.57212404]
[1748516558666,1.0216362,685.38,684.46,0.57212404]
[1748516558866,1.02154427,685.4,684.46,0.57212404]
[1748516559464,1.02154427,685.4,684.47,0.5723155]
[1748516559766,1.02154427,685.4,684.48,0.5723155]
[1748516559962,1.02154427,685.4,684.46,0.57212404]
[1748516560166,1.02154427,685.4,684.49,0.678]
[1748516560862,1.02154427,685.4,684.5,0.57242818]
[1748516561167,1.0225778,685.39,684.49,0.678]
[1748516561363,1.02257784,685.38,684.49,0.678]
[1748516561563,1.02154427,685.4,684.5,0.57245234]
[1748516561866,1.02154427,685.4,684.49,0.678]
[1748516562068,1.02154427,685.4,684.5,0.57253381]
[1748516562367,1.02154427,685.4,684.49,0.678]
[1748516562562,1.02271547,685.39,684.49,0.678]
[1748516562767,1.02154427,685.4,684.49,0.678]
[1748516562967,1.02154427,685.4,684.5,0.57253485]
[1748516563167,1.0227153,685.39,684.49,0.678]
[1748516563363,1.02154427,685.4,684.49,0.678]
[1748516563570,1.02154427,685.4,684.5,0.57290064]
[1748516563763,1.02154427,685.4,684.49,0.678]
[1748516563967,1.02154427,685.4,684.5,0.57289984]
[1748516564168,1.02336701,685.39,684.49,0.678]
[1748516564363,1.02154427,685.4,684.5,0.57221888]
[1748516564563,1.02218413,685.39,684.51,0.57221888]
[1748516564767,1.02218384,685.38,684.52,0.57221951]
[1748516564964,1.02221037,685.37,684.53,0.57221951]
[1748516565164,1.02154427,685.4,684.49,0.678]
[1748516565369,1.0222121,685.39,684.5,0.572219]
[1748516565569,1.0222121,685.38,684.51,0.572219]
[1748516565766,1.02154427,685.4,684.52,0.57186245]
[1748516565969,1.02156627,685.39,684.53,0.57186245]
[1748516566173,1.02156776,685.38,684.54,0.57186193]
[1748516566366,1.02154427,685.4,684.49,0.678]
[1748516566367,1.02156776,685.37,684.55,0.57162591]
[1748516566570,1.02156776,685.36,684.56,0.57162591]
[1748516566871,1.02156776,685.36,684.49,0.678]
[1748516566872,1.02156776,685.35,684.57,0.57162591]
[1748516567068,1.02088185,685.34,684.58,0.57162642]
[1748516567269,1.02154427,685.4,684.59,0.57162642]
[1748516567472,1.02154427,685.4,684.6,0.57162642]
[1748516567473,1.02088332,685.39,684.6,0.57162642]
[1748516567766,1.02088332,685.38,684.61,0.57162642]
[1748516567972,1.02088332,685.37,684.62,0.57162642]
[1748516568268,1.02088332,685.36,684.49,0.678]
[1748516568568,1.02154427,685.4,684.5,0.57132666]
[1748516568767,1.02154427,685.4,684.51,0.57132614]
[1748516568967,1.02018915,685.39,684.52,0.57132614]
[1748516569172,1.02018606,685.38,684.53,0.57132582]
[1748516569372,1.02018606,685.38,684.49,0.678]
[1748516569373,1.02018606,685.37,684.54,0.57132582]
[1748516569573,1.02018606,685.36,684.55,0.57132582]
[1748516569767,1.02018606,685.35,684.56,0.57132582]
[1748516569967,1.02154427,685.4,684.57,0.57132582]
[1748516569968,1.02018606,685.34,684.57,0.57132582]
[1748516570171,1.02018606,685.33,684.58,0.57132582]
[1748516570371,1.02154427,685.4,684.59,0.5713259]
[1748516570569,1.02019226,685.39,684.6,0.5713259]
[1748516570773,1.02018704,685.38,684.61,0.57122732]
[1748516570972,1.02018704,685.37,684.62,0.57122732]
[1748516571167,1.02154427,685.4,684.63,0.57122732]
[1748516571471,1.01999801,685.39,684.64,0.57122732]
[1748516571669,1.01999801,685.38,684.65,0.57122732]
[1748516571873,1.01983125,685.37,684.66,0.57122732]
[1748516572072,1.01983125,685.36,684.67,0.57122732]
[1748516572267,1.01983125,685.35,684.68,0.57115013]
[1748516572471,1.01979605,685.34,684.69,0.57115008]
[1748516572672,1.02154427,685.4,684.49,0.678]
[1748516572873,1.02154427,685.4,684.5,0.5711506]
[1748516573072,1.02154427,685.4,684.51,0.5711506]
[1748516573369,1.01978972,685.39,684.52,0.5711506]
[1748516573675,1.01978972,685.38,684.53,0.57109059]
[1748516573869,1.01978972,685.38,684.49,0.678]
[1748516573870,1.01978972,685.37,684.54,0.57109059]
[1748516574069,1.01978972,685.36,684.55,0.57109059]
[1748516574269,1.02154427,685.4,684.46,0.57212404]
[1748516574775,1.01965757,685.39,684.47,0.57109056]
[1748516574969,1.01957166,685.38,684.48,0.57104386]
[1748516575167,1.01957166,685.37,684.49,0.57104386]
[1748516575469,1.01957166,685.36,684.5,0.57104386]
[1748516575675,1.01957166,685.35,684.51,0.57104386]
[1748516575875,1.01956642,685.34,684.46,0.57212404]
[1748516576074,1.01956642,685.33,684.47,0.57109363]
[1748516576274,1.01956716,685.32,684.48,0.57109303]
[1748516576475,1.01956716,685.31,684.49,0.57109303]
[1748516576670,1.02154427,685.4,684.5,0.57105805]
[1748516576875,1.02154427,685.4,684.51,0.57105805]
[1748516577072,1.01949506,685.39,684.52,0.57105857]
[1748516577272,1.01949506,685.38,684.53,0.57105857]
[1748516577576,1.01949506,685.37,684.54,0.57105857]
[1748516577875,1.01949506,685.36,684.55,0.57105857]
[1748516578075,1.01924127,685.35,684.56,0.57098098]
[1748516578277,1.01924127,685.34,684.48,0.599]
[1748516578572,1.02154427,685.4,684.49,0.57098095]
[1748516578772,1.02154427,685.4,684.5,0.57098095]
[1748516578977,1.01917437,685.39,684.51,0.57098095]
[1748516579277,1.0191225,685.38,684.52,0.57095901]
[1748516579476,1.02154427,685.4,684.53,0.57100449]
[1748516579477,1.01912141,685.37,684.53,0.57100449]
[1748516579777,1.01912141,685.36,684.54,0.57105454]
[1748516580074,1.01919767,685.35,684.48,0.599]
[1748516580278,1.01919971,685.34,684.48,0.599]
[1748516580475,1.01919936,685.33,684.48,0.599]
[1748516580671,1.02154427,685.4,684.48,0.599]
[1748516580875,1.01919936,685.39,684.49,0.57105477]
[1748516581176,1.02154427,685.4,684.48,0.599]
[1748516581378,1.0192702,685.39,684.48,0.599]
[1748516581579,1.01927144,685.38,684.49,0.57104781]
[1748516581779,1.0192711,685.37,684.48,0.599]
[1748516582080,1.02154427,685.4,684.48,0.599]
[1748516582275,1.01927166,685.39,684.48,0.599]
[1748516582477,1.02154427,685.4,684.48,0.599]
[1748516583778,1.02154427,685.4,684.49,0.57107751]
[1748516583983,1.01901203,685.39,684.5,0.57107751]
[1748516584284,1.01901203,685.38,684.51,0.57107751]
[1748516584483,1.01896042,685.37,684.52,0.57112351]
[1748516584682,1.01896042,685.36,684.53,0.57112351]
[1748516584877,1.01896263,685.35,684.54,0.57112253]
[1748516585183,1.02154427,685.4,684.48,0.599]
[1748516585383,1.01896082,685.39,684.49,0.57112354]
[1748516585679,1.01896082,685.38,684.5,0.57112354]
[1748516585875,1.01896082,685.37,684.51,0.57112354]
[1748516586079,1.01896082,685.36,684.52,0.57112354]
[1748516586281,1.02154427,685.4,684.48,0.599]
[1748516586477,1.0189364,685.39,684.49,0.57113935]
[1748516586779,1.0189364,685.39,684.48,0.599]
[1748516586780,1.02154427,685.4,684.48,0.599]
[1748516586980,1.01893358,685.39,684.48,0.599]
[1748516587179,1.02154427,685.4,684.48,0.599]
[1748516587381,1.02154427,685.4,684.49,0.57115547]
[1748516587580,1.02154427,685.4,684.48,0.599]
[1748516588181,1.02154427,685.4,684.49,0.46384169]
[1748516588582,1.01907511,685.39,684.5,0.57117735]
[1748516588782,1.02154427,685.4,684.48,0.599]
[1748516589883,1.02013802,685.39,684.49,0.57120727]
[1748516590083,1.02154427,685.4,684.48,0.599]
[1748516590277,1.02013998,685.39,684.48,0.599]
[1748516590480,1.02017514,685.38,684.49,0.57120727]
[1748516590678,1.02017514,685.37,684.5,0.57120727]
[1748516590879,1.02017514,685.36,684.48,0.599]
[1748516591079,1.02030781,685.35,684.49,0.57126981]
[1748516591285,1.02154427,685.4,684.48,0.599]
[1748516591480,1.02035626,685.39,684.49,0.57129093]
[1748516591681,1.02046839,685.38,684.5,0.57129093]
[1748516591881,1.02046802,685.37,684.51,0.57135189]
[1748516592080,1.02154427,685.4,684.48,0.599]
[1748516592384,1.02047387,685.39,684.49,0.57135168]
[1748516592580,1.02154427,685.4,684.5,0.57135168]
[1748516592581,1.02066725,685.38,684.5,0.57135168]
[1748516592780,1.02066725,685.37,684.51,0.57135168]
[1748516592985,1.0198571,685.36,684.52,0.57140973]
[1748516593186,1.01985042,685.35,684.48,0.599]
[1748516593384,1.02008911,685.34,684.49,0.57140973]
[1748516593584,1.02154427,685.4,684.48,0.599]
[1748516593585,1.02008911,685.33,684.5,0.57140973]
[1748516593786,1.02010873,685.32,684.51,0.57154322]
[1748516593981,1.02010873,685.31,684.52,0.57154322]
[1748516594186,1.02010873,685.3,684.53,0.57154322]
[1748516594382,1.02016095,685.29,684.54,0.57162186]
[1748516594585,1.02016114,685.28,684.55,0.57162186]
[1748516594786,1.02016114,685.27,684.56,0.57162186]
[1748516594986,1.02016114,685.26,684.57,0.57162186]
[1748516595187,1.02040129,685.25,684.58,0.57175999]
[1748516595387,1.02045156,685.24,684.5,0.46384169]
[1748516595686,1.02047794,685.23,684.51,0.57196287]
[1748516595886,1.02047794,685.22,684.52,0.57196287]
[1748516596086,1.02047794,685.21,684.53,0.57196287]
[1748516596383,1.02048641,685.2,684.54,0.57191255]
[1748516596589,1.02154427,685.4,684.52,0.46384169]
[1748516596986,1.02154427,685.4,684.53,0.57208031]
[1748516597284,1.02154427,685.4,684.54,0.57208031]
[1748516597480,1.02078748,685.39,684.52,0.46384169]
[1748516597680,1.02154427,685.4,684.52,0.46384169]
[1748516598582,1.02185615,685.39,684.53,0.46384169]
[1748516598789,1.02154427,685.4,684.57,0.46384169]
[1748516598983,1.02154427,685.4,684.55,0.46384169]
[1748516599181,1.02185383,685.39,684.55,0.46384169]
[1748516599385,1.02185383,685.38,684.56,0.57267869]
[1748516599586,1.02185383,685.37,684.57,0.57267869]
[1748516599784,1.02154427,685.4,684.58,0.57269804]
[1748516599988,1.02154427,685.4,684.59,0.57269815]
[1748516600188,1.02186511,685.39,684.6,0.57269815]
[1748516600389,1.02186677,685.38,684.61,0.57269789]
[1748516600586,1.02186677,685.37,684.62,0.57269789]
[1748516600785,1.02186677,685.36,684.63,0.57269789]
[1748516600989,1.02186677,685.35,684.64,0.57269789]
[1748516601188,1.02186677,685.34,684.65,0.57269789]
[1748516601388,1.02186677,685.33,684.66,0.57271534]
[1748516601590,1.02189024,685.32,684.67,0.57271534]
[1748516601790,1.0218823,685.31,684.68,0.57271562]
[1748516601987,1.0218823,685.3,684.69,0.57271562]
[1748516602189,1.02188164,685.29,684.7,0.57226572]
[1748516602392,1.02188164,685.28,684.71,0.57226572]
[1748516602597,1.02188164,685.27,684.72,0.57226572]
[1748516602790,1.02188164,685.26,684.73,0.57226572]
[1748516602994,1.02188164,685.25,684.74,0.57226572]
[1748516603194,1.02188164,685.24,684.75,0.57226572]
[1748516603394,1.02195377,685.23,684.76,0.57229692]
[1748516603590,1.02195129,685.22,684.77,0.57229787]
[1748516603795,1.02195129,685.21,684.58,0.46384169]
[1748516603992,1.02154427,685.4,684.59,0.57229787]
[1748516604192,1.0219499,685.39,684.6,0.57229787]
[1748516604397,1.02195487,685.38,684.61,0.57229838]
[1748516604596,1.02195487,685.37,684.62,0.57229838]
[1748516604897,1.02195487,685.36,684.63,0.57229838]
[1748516605093,1.02195487,685.35,684.64,0.57229838]
[1748516605293,1.02198529,685.34,684.65,0.57249818]
[1748516605490,1.02201219,685.33,684.56,0.46384169]
[1748516605698,1.02154427,685.4,684.56,0.46384169]
[1748516605896,1.02201367,685.39,684.57,0.57251273]
[1748516606097,1.02201301,685.38,684.58,0.57251251]
[1748516606397,1.02201378,685.37,684.59,0.57251181]
[1748516606598,1.02201378,685.36,684.6,0.57251181]
[1748516606797,1.02201378,685.35,684.61,0.57251181]
[1748516606997,1.02201378,685.34,684.62,0.57251181]
[1748516607198,1.02154427,685.4,684.63,0.57246125]
[1748516607394,1.02154427,685.4,684.5,0.46384169]
[1748516607593,1.02206118,685.39,684.51,0.5724758]
[1748516607797,1.02206342,685.38,684.5,0.46384169]
[1748516607999,1.02206424,685.37,684.51,0.57247565]
[1748516608199,1.02206424,685.36,684.52,0.57247565]
[1748516608398,1.02206424,685.35,684.53,0.57247565]
[1748516608600,1.02206424,685.34,684.54,0.57247565]
[1748516608796,1.02206424,685.33,684.55,0.57247565]
[1748516609000,1.02206424,685.32,684.56,0.57247565]
[1748516609201,1.02206424,685.32,684.48,0.599]
[1748516609202,1.02154427,685.4,684.57,0.57552421]
[1748516609401,1.02154427,685.4,684.48,0.599]
[1748516609601,1.02154427,685.4,684.48,1.06284169]
[1748516609802,1.02209858,685.39,684.49,0.5755345]
[1748516610003,1.02209858,685.38,684.5,0.5755345]
[1748516610303,1.02209858,685.37,684.51,0.5755345]
[1748516610502,1.0220971,685.36,684.52,0.57553502]
[1748516610700,1.0220971,685.36,684.48,1.06284169]
[1748516610701,1.0220971,685.35,684.53,0.57553502]
[1748516610900,1.02190839,685.34,684.54,0.57553502]
[1748516611198,1.02190904,685.33,684.55,0.57553529]
[1748516611402,1.02191019,685.32,684.48,0.599]
[1748516611597,1.02154427,685.4,684.48,0.599]
[1748516612002,1.02304206,685.39,684.49,0.5762506]
[1748516612202,1.02154427,685.4,684.48,0.599]
[1748516613005,1.02154427,685.4,684.49,0.57624967]
[1748516613198,1.02154427,685.4,684.5,0.57624755]
[1748516613397,1.02154427,685.4,684.48,0.599]
[1748516614402,1.02303641,685.39,684.4,0.46384169]
[1748516614805,1.0230364,685.38,684.4,0.46384169]
[1748516615006,1.02154427,685.4,684.41,0.57624889]
[1748516615207,1.02154427,685.4,684.4,0.46384169]
[1748516615399,1.02154427,685.4,684.41,0.57624863]
[1748516615599,1.02154427,685.4,684.4,0.46384169]
[1748516616000,1.02304053,685.39,684.4,0.46384169]
[1748516616201,1.02308647,685.38,684.4,0.46384169]
[1748516616408,1.02154427,685.4,684.41,0.57624766]
[1748516616603,1.02154427,685.4,684.4,0.46384169]
[1748516616908,1.02154427,685.4,684.42,0.693]
[1748516617108,1.02154427,685.4,684.43,0.46384169]
[1748516618010,1.02154427,685.4,684.5,0.46384169]
[1748516618206,1.02154427,685.4,684.51,0.57623962]
[1748516618403,1.02154427,685.4,684.5,0.46384169]
[1748516618608,1.02300784,685.39,684.51,0.57623972]
[1748516618806,1.02154427,685.4,684.51,0.46384169]
[1748516619105,1.02154427,685.4,684.42,0.693]
[1748516619106,1.02154427,685.4,684.52,0.46384169]
[1748516619311,1.02301141,685.39,684.53,0.57624113]
[1748516619610,1.02276112,685.38,684.54,0.57624117]
[1748516619811,1.02276112,685.37,684.55,0.57624117]
[1748516620014,1.02276277,685.36,684.56,0.57624065]
[1748516620211,1.02275888,685.35,684.57,0.57624065]
[1748516620405,1.02275284,685.34,684.58,0.57624017]
[1748516620714,1.02275149,685.33,684.59,0.57624018]
[1748516620910,1.02275149,685.32,684.6,0.57624018]
[1748516621111,1.02275149,685.31,684.61,0.57624018]
[1748516621311,1.02275149,685.3,684.62,0.57624018]
[1748516621514,1.02154427,685.4,684.42,0.693]
[1748516621710,1.02274123,685.39,684.43,0.57624017]
[1748516621908,1.02274119,685.38,684.44,0.57624038]
[1748516622112,1.02274292,685.37,684.42,0.693]
[1748516622313,1.02154427,685.4,684.42,0.693]
[1748516622314,1.02274292,685.36,684.43,0.57624038]
[1748516622614,1.02275146,685.35,684.44,0.57624038]
[1748516622910,1.02275146,685.34,684.45,0.57624038]
[1748516623114,1.02275146,685.33,684.46,0.57624038]
[1748516623315,1.02275138,685.32,684.47,0.57624038]
[1748516623510,1.02154427,685.4,684.48,0.57624038]
[1748516623709,1.02275487,685.39,684.42,0.693]
[1748516623914,1.02275487,685.38,684.43,0.57624215]
[1748516624115,1.02275532,685.37,684.44,0.57624215]
[1748516624315,1.02275532,685.37,684.42,0.693]
[1748516624316,1.02275904,685.36,684.45,0.5762423]
[1748516624517,1.02275904,685.35,684.46,0.5762423]
[1748516624714,1.02275904,685.34,684.47,0.5762423]
[1748516624919,1.02275904,685.33,684.48,0.5762423]
[1748516625119,1.02275904,685.32,684.49,0.5762423]
[1748516625414,1.0226365,685.31,684.5,0.57621322]
[1748516625718,1.0226365,685.31,684.42,0.693]
[1748516625719,1.02154427,685.4,684.51,0.57624465]
[1748516625921,1.02247943,685.39,684.52,0.57626697]
[1748516626116,1.02154427,685.4,684.53,0.57626664]
[1748516626315,1.02154427,685.4,684.42,0.693]
[1748516626819,1.02246278,685.39,684.43,0.57627107]
[1748516627118,1.02246278,685.38,684.44,0.57627107]
[1748516627315,1.02247185,685.37,684.45,0.57627084]
[1748516627518,1.02246164,685.36,684.46,0.57627084]
[1748516627721,1.02246164,685.35,684.47,0.57626941]
[1748516627925,1.02244999,685.34,684.48,0.57626941]
[1748516628125,1.02244999,685.33,684.49,0.57626941]
[1748516628326,1.02154427,685.4,684.5,0.57621101]
[1748516628522,1.02154427,685.4,684.42,0.693]
[1748516628719,1.02264635,685.39,684.42,0.693]
[1748516629030,1.02154427,685.4,684.42,0.693]
[1748516629225,1.02265913,685.39,684.42,0.693]
[1748516629426,1.02154427,685.4,684.42,0.693]
[1748516629623,1.02154427,685.4,684.43,0.57620173]
[1748516629824,1.02267408,685.39,684.42,0.693]
[1748516630020,1.02267382,685.38,684.42,0.693]
[1748516630321,1.02154427,685.4,684.43,0.57619805]
[1748516630524,1.02267883,685.39,684.42,0.693]
[1748516630721,1.02154427,685.4,684.42,0.693]
[1748516631027,1.02267654,685.39,684.42,0.693]
[1748516631226,1.02267654,685.38,684.43,0.57619894]
[1748516631525,1.02267654,685.37,684.44,0.57619894]
[1748516631725,1.02267654,685.36,684.45,0.57619894]
[1748516631925,1.02267654,685.35,684.46,0.57619894]
[1748516632126,1.02154427,685.4,684.42,0.693]
[1748516632326,1.02263942,685.39,684.43,0.57619835]
[1748516632527,1.02263942,685.38,684.44,0.57619835]
[1748516632728,1.02264537,685.37,684.45,0.57619962]
[1748516633024,1.02264448,685.36,684.46,0.57619962]
[1748516633231,1.02264828,685.35,684.47,0.57619962]
[1748516633430,1.0226453,685.34,684.48,0.57619546]
[1748516633632,1.02264376,685.33,684.42,0.693]
[1748516633825,1.02154427,685.4,684.42,0.693]
[1748516634025,1.02243686,685.39,684.43,0.57619365]
[1748516634228,1.02243686,685.38,684.44,0.57619365]
[1748516634429,1.02243686,685.37,684.45,0.57619365]
[1748516634626,1.02243686,685.36,684.46,0.57619365]
[1748516634830,1.02243686,685.35,684.47,0.57619365]
[1748516635026,1.02243686,685.34,684.48,0.57619365]
[1748516635331,1.02244409,685.33,684.49,0.57614595]
[1748516635530,1.02243678,685.32,684.5,0.57614595]
[1748516635830,1.02243678,685.31,684.51,0.57614595]
[1748516636030,1.0224209,685.3,684.52,0.57614648]
[1748516636226,1.0224209,685.29,684.42,0.693]
[1748516636431,1.02242423,685.28,684.43,0.57615307]
[1748516636629,1.02242423,685.27,684.44,0.57615307]
[1748516636831,1.02242423,685.27,684.42,0.693]
[1748516636832,1.02238067,685.26,684.45,0.57615307]
[1748516637027,1.02238067,685.25,684.46,0.57615307]
[1748516637231,1.02154427,685.4,684.42,0.693]
[1748516637429,1.02238163,685.39,684.43,0.57614043]
[1748516637632,1.02238163,685.38,684.42,0.693]
[1748516637831,1.02154427,685.4,684.42,0.693]
[1748516637832,1.02154427,685.4,684.43,0.57611987]
[1748516638132,1.02232938,685.39,684.44,0.57611958]
[1748516638332,1.02232938,685.38,684.45,0.57611958]
[1748516638532,1.02232938,685.37,684.46,0.57611958]
[1748516638733,1.02233217,685.36,684.47,0.57612003]
[1748516638934,1.02154427,685.4,684.42,0.693]
[1748516639136,1.02233173,685.39,684.43,0.5761205]
[1748516639335,1.02154427,685.4,684.44,0.57610088]
[1748516639538,1.02229768,685.39,684.45,0.57610088]
[1748516639833,1.02229758,685.38,684.46,0.5761014]
[1748516640136,1.02229758,685.37,684.47,0.5761014]
[1748516640336,1.02229361,685.36,684.48,0.5761014]
[1748516640537,1.02229361,685.35,684.49,0.5761014]
[1748516640738,1.02229361,685.34,684.5,0.5761014]
[1748516640937,1.02230002,685.33,684.51,0.57609984]
[1748516641137,1.02230002,685.32,684.52,0.57609984]
[1748516641334,1.02229553,685.31,684.53,0.57609984]
[1748516641538,1.02229505,685.3,684.54,0.57610035]
[1748516641835,1.02229505,685.29,684.55,0.57610035]
[1748516642135,1.02229505,685.28,684.56,0.57610035]
[1748516642336,1.02229505,685.27,684.57,0.57610035]
[1748516642542,1.02229505,685.26,684.58,0.57610035]
[1748516642839,1.02227557,685.25,684.59,0.57609035]
[1748516643042,1.02227882,685.24,684.6,0.57609036]
[1748516643237,1.02227858,685.23,684.42,0.693]
[1748516643441,1.02225614,685.22,684.43,0.5760798]
[1748516643643,1.02225614,685.21,684.44,0.5760798]
[1748516643838,1.02154427,685.4,684.45,0.57607903]
[1748516643839,1.02225136,685.2,684.45,0.57607903]
[1748516644038,1.02225136,685.19,684.46,0.57607903]
[1748516644239,1.02224275,685.18,684.47,0.57606841]
[1748516644440,1.02224275,685.17,684.48,0.57606841]
[1748516644635,1.02154427,685.4,684.42,0.693]
[1748516644840,1.02224275,685.39,684.43,0.57606841]
[1748516645039,1.02224275,685.39,684.42,0.693]
[1748516645040,1.02154427,685.4,684.42,0.693]
[1748516645435,1.02222178,685.39,684.43,0.57606003]
[1748516645636,1.02222434,685.38,684.44,0.57606006]
[1748516645840,1.02154427,685.4,684.42,0.693]
[1748516646242,1.02222563,685.39,684.42,0.693]
[1748516646439,1.022241,685.38,684.43,0.57605846]
[1748516646743,1.02222587,685.37,684.42,0.693]
[1748516646942,1.02222563,685.39,684.42,0.693]
[1748516647338,1.02222563,685.39,684.43,0.5760595]
[1748516647537,1.02223077,685.38,684.44,0.5760595]
[1748516647843,1.02223077,685.38,684.42,0.693]
[1748516647844,1.02225812,685.37,684.45,0.57605947]
[1748516648042,1.02225812,685.36,684.46,0.57605947]
[1748516648242,1.02225812,685.35,684.47,0.57605947]
[1748516648442,1.02225812,685.34,684.48,0.57605947]
[1748516648642,1.02225812,685.33,684.49,0.57605947]
[1748516648838,1.02225812,685.33,684.42,0.693]
[1748516648839,1.02225812,685.32,684.5,0.57605947]
[1748516649042,1.02225812,685.31,684.51,0.57605947]
[1748516649240,1.02222563,685.39,684.42,0.693]
[1748516650040,1.02222563,685.39,684.43,0.57605461]
[1748516650341,1.0222623,685.38,684.44,0.57605408]
[1748516650542,1.02222563,685.39,684.45,0.57605109]
[1748516650744,1.022257,685.38,684.46,0.57605109]
[1748516651039,1.022257,685.37,684.47,0.57605109]
[1748516651239,1.02222563,685.39,684.48,0.57604412]
[1748516651439,1.02222563,685.39,684.42,0.693]
[1748516651641,1.02227097,685.38,684.42,0.693]
[1748516651839,1.02226964,685.37,684.43,0.57604459]
[1748516652040,1.02226964,685.37,684.42,0.693]
[1748516652041,1.02222563,685.39,684.42,0.693]
[1748516652545,1.02226183,685.38,684.46,0.46384169]
[1748516652740,1.02226183,685.37,684.47,0.57604268]
[1748516652942,1.02226183,685.36,684.64,0.46384169]
[1748516653143,1.02226183,685.36,684.42,0.693]
[1748516653144,1.02226183,685.35,684.65,0.57604268]
[1748516653341,1.02222563,685.39,684.63,0.46384169]
[1748516653542,1.02219772,685.38,684.64,1.03987678]
[1748516653842,1.02220334,685.37,684.65,0.57603489]
[1748516654041,1.02220334,685.36,684.66,0.57603541]
[1748516654240,1.02220334,685.36,684.63,0.46384169]
[1748516654241,1.02220334,685.35,684.67,0.57603541]
[1748516654543,1.02220334,685.34,684.68,0.57603541]
[1748516654741,1.02220334,685.33,684.69,0.57603541]
[1748516655048,1.02221059,685.32,684.7,0.57603541]
[1748516655240,1.02221016,685.31,684.71,0.57553226]
[1748516655444,1.02222563,685.39,684.72,0.57553226]
[1748516655644,1.02219459,685.38,684.73,0.57552623]
[1748516655841,1.02219459,685.37,684.74,0.57552623]
[1748516656046,1.02219459,685.36,684.75,0.57552623]
[1748516656247,1.02222563,685.39,684.64,0.46384169]
[1748516656447,1.02217038,685.38,684.65,0.57552487]
[1748516656743,1.02217106,685.37,684.66,0.57552401]
[1748516656942,1.02214636,685.36,684.67,0.57553538]
[1748516657144,1.02193659,685.35,684.68,0.57546038]
[1748516657345,1.02194383,685.34,684.69,0.57546071]
[1748516657543,1.02194155,685.33,684.53,0.46384169]
[1748516657743,1.02194155,685.32,684.54,0.57546314]
[1748516657946,1.02194155,685.31,684.55,0.57546314]
[1748516658149,1.02194155,685.3,684.56,0.57546314]
[1748516658352,1.02194155,685.29,684.57,0.57546314]
[1748516658547,1.02222563,685.39,684.51,0.46384169]
[1748516658548,1.02194155,685.28,684.58,0.57546314]
[1748516658748,1.02194155,685.27,684.59,0.57546314]
[1748516659042,1.02194155,685.27,684.51,0.46384169]
[1748516659043,1.02184391,685.26,684.6,0.57540731]
[1748516659245,1.02175657,685.25,684.61,0.57535459]
[1748516659450,1.02175061,685.24,684.62,0.5753521]
[1748516659648,1.02175045,685.23,684.63,0.5753523]
[1748516659848,1.02175045,685.22,684.64,0.5753523]
[1748516660048,1.02173749,685.21,684.65,0.57535338]
[1748516660249,1.02173749,685.2,684.66,1.17535338]
[1748516660450,1.02173749,685.19,684.67,0.57535338]
[1748516660746,1.02173749,685.18,684.68,0.57530006]
[1748516660950,1.02172109,685.17,684.69,0.57529973]
[1748516661146,1.02222563,685.39,684.66,0.6]
[1748516661351,1.02170233,685.38,684.67,0.57526444]
[1748516661549,1.02169646,685.37,684.68,0.57526691]
[1748516661752,1.02169646,685.37,684.66,0.6]
[1748516661753,1.02169646,685.36,684.69,0.57526691]
[1748516661952,1.02169646,685.35,684.7,0.57526691]
[1748516662153,1.02169646,685.34,684.71,0.57526691]
[1748516662354,1.02169646,685.33,684.72,0.57526691]
[1748516662550,1.02169646,685.32,684.73,0.57526691]
[1748516662750,1.02169646,685.31,684.74,0.57526691]
[1748516662955,1.02222563,685.39,684.75,0.5752378]
[1748516662956,1.0217214,685.3,684.75,0.5752378]
[1748516663154,1.02222563,685.39,684.66,0.6]
[1748516663555,1.02188453,685.38,684.67,0.57523453]
[1748516663855,1.02188453,685.38,684.66,0.6]
[1748516663856,1.02188453,685.37,684.68,0.57523453]
[1748516664054,1.02188453,685.36,684.69,0.57523453]
[1748516664254,1.02185316,685.35,684.7,0.57521455]
[1748516664457,1.02185316,685.34,684.66,0.6]
[1748516664652,1.02182361,685.33,684.67,0.57519494]
[1748516664857,1.02182362,685.32,684.68,0.57519495]
[1748516665052,1.02182362,685.31,684.69,0.57519495]
[1748516665254,1.02182362,685.3,684.7,0.57519495]
[1748516665456,1.02182362,685.29,684.71,0.57519495]
[1748516665752,1.02182976,685.28,684.72,0.57519495]
[1748516665957,1.02182976,685.27,684.73,0.57519495]
[1748516666157,1.02182976,685.26,684.74,0.57519495]
[1748516666360,1.02222563,685.39,684.75,0.57521079]
[1748516666559,1.02183661,685.38,684.76,0.57521079]
[1748516666754,1.02183743,685.37,684.77,0.57521079]
[1748516666955,1.02184417,685.36,684.78,0.57521079]
[1748516667260,1.02181934,685.35,684.79,0.57521079]
[1748516667460,1.02181934,685.34,684.8,0.57521079]
[1748516667661,1.02181934,685.33,684.81,0.57521079]
[1748516667860,1.02182499,685.32,684.82,0.57521079]
[1748516668060,1.02182526,685.31,684.66,0.6]
[1748516668256,1.02180972,685.3,684.67,0.57518821]